Workbook

Sheet Masterlist 2015
A1: ID | B1: Last Name | C1: First Name | D1: Full Name | E1: MF | F1: Handicap | G1: Shotgun April 9 | H1: PLHCP 1-9 | I1: PLHCP 10-18
A2: 1 | B2: Aaron | C2: Frank | D2: =CONCATENATE(C2, " ", B2) -> Frank Aaron | E2: M | H2: =IFERROR(IF(E2="M",VLOOKUP($F2,M1RedPLHCP,2),VLOOKUP($F2,W1RedPLHCP,2)),"") ->  | I2: =IFERROR(IF($E2="M",VLOOKUP($F2,M10RedPLHCP,2),VLOOKUP($F2,W10RedPLHCP,2)),"") -> 
A3: 2 | B3: Anderson | C3: David | D3: David Anderson | E3: M
A4: 3 | B4: Applegate | C4: Ellen | D4: Ellen Applegate | E4: F | F4: 27.9 | G4: yes | H4: 18 | I4: 18
A5: 4 | B5: Bagley | C5: Ken | D5: Ken Bagley | E5: M | F5: 22.3 | H5: 10 | I5: 10
A6: 5 | B6: Burrows | C6: Mike | D6: Mike Burrows | E6: M | F6: 20.4 | G6: yes | H6: 9 | I6: 9
A7: 6 | B7: Clark | C7: John | D7: John Clark | E7: M | F7: 28.1 | H7: 13 | I7: 13
A8: 7 | B8: Callahan | C8: Annie | D8: Annie Callahan | E8: F | F8: 24 | G8: yes | H8: 15 | I8: 16
A9: 8 | B9: Chandler | C9: Sheri | D9: Sheri Chandler | E9: F | F9: 24.7 | G9: yes | H9: 16 | I9: 16
A10: 9 | B10: Conroy | C10: Marc | D10: Marc Conroy | E10: M | F10: 24.5 | H10: 11 | I10: 11
A11: 10 | B11: Davis | C11: Janet | D11: Janet Davis | E11: F | F11: 24.9 | H11: 16 | I11: 16
A12: 11 | B12: Daniel | C12: Brett | D12: Brett Daniel | E12: M | F12: 26.7 | G12: yes | H12: 12 | I12: 12
A13: 12 | B13: Day | C13: Steve | D13: Steve Day | E13: M | F13: 28.2 | H13: 13 | I13: 13
A14: 13 | B14: Denham | C14: Mary | D14: Mary Denham | E14: F | F14: 23.7 | H14: 15 | I14: 16
A15: 14 | B15: Dodge | C15: Kathy | D15: Kathy Dodge | E15: F | F15: 23.9 | G15: yes | H15: 15 | I15: 16
A16: 15 | B16: Douglass | C16: Angela | D16: Angela Douglass | E16: F | F16: 28.5 | G16: yes | H16: 18 | I16: 19
A17: 16 | B17: Evans | C17: Justin | D17: Justin Evans | E17: M | F17: 13.4 | G17: yes | H17: 5 | I17: 5
A18: 17 | B18: Fernandez | C18: Manny | D18: Manny Fernandez | E18: M | F18: 23.7 | H18: 11 | I18: 10
A19: 18 | B19: Fisher | C19: Heather | D19: Heather Fisher | E19: F | F19: 28.5 | G19: yes | H19: 18 | I19: 19
A20: 19 | B20: Fitch | C20: Deborah | D20: Deborah Fitch | E20: F | F20: 24.6 | G20: yes | H20: 16 | I20: 16
A21: 20 | B21: Forbes | C21: Richard | D21: Richard Forbes | E21: M | F21: 20.2 | H21: 9 | I21: 9
A22: 21 | B22: Ford | C22: Chris | D22: Chris Ford | E22: M | F22: 26.5 | G22: yes | H22: 12 | I22: 12
A23: 22 | B23: Gallagher | C23: Daniel | D23: Daniel Gallagher | E23: M | F23: 26.4 | G23: yes | H23: 12 | I23: 12
A24: 23 | B24: Garcia | C24: Alan | D24: Alan Garcia | E24: M | F24: 23.5 | H24: 10 | I24: 10
A25: 24 | B25: Gibson | C25: Justin | D25: Justin Gibson | E25: M | F25: 22.9 | H25: 10 | I25: 10
A26: 25 | B26: Goldberg | C26: Beth Ann | D26: Beth Ann Goldberg | E26: F | F26: 43 | G26: yes | H26: 26 | I26: 27
A27: 26 | B27: Hall | C27: Molly | D27: Molly Hall | E27: F | F27: 29.6 | H27: 19 | I27: 19
A28: 27 | B28: Hamilton | C28: Dan | D28: Dan Hamilton | E28: M | F28: 25 | H28: 11 | I28: 11
A29: 28 | B29: Hunt | C29: Charlie | D29: Charlie Hunt | E29: M | F29: 32 | H29: 15 | I29: 15
A30: 29 | B30: Ipsen | C30: Julie | D30: Julie Ipsen | E30: F | F30: 31.8 | G30: yes | H30: 20 | I30: 21
A31: 30 | B31: Johnson | C31: Leann | D31: Leann Johnson | E31: F | F31: 36 | H31: 23 | I31: 23
A32: 31 | B32: Johnson | C32: Regina | D32: Regina Johnson | E32: F | F32: 28.8 | H32: 18 | I32: 19
A33: 32 | B33: Johnson | C33: Karl | D33: Karl Johnson | E33: M | F33: 36 | H33: 17 | I33: 16
A34: 33 | B34: King | C34: Molly | D34: =CONCATENATE(C34, " ", B34) -> Molly King | E34: F | F34: 36.4 | G34: yes | H34: =IFERROR(IF(E34="M",VLOOKUP($F34,M1RedPLHCP,2),VLOOKUP($F34,W1RedPLHCP,2)),"") -> 23 | I34: =IFERROR(IF($E34="M",VLOOKUP($F34,M10RedPLHCP,2),VLOOKUP($F34,W10RedPLHCP,2)),"") -> 23
A35: 34 | B35: Lee | C35: David | D35: David Lee | E35: M | F35: 29.1 | H35: 13 | I35: 13
A36: 35 | B36: Martinez | C36: Mary | D36: Mary Martinez | E36: F | F36: 14 | G36: yes | H36: 9 | I36: 9
A37: 36 | B37: Matthews | C37: Andrew | D37: Andrew Matthews | E37: M | F37: 19 | G37: yes | H37: 8 | I37: 8
A38: 37 | B38: McPherson | C38: Lora | D38: Lora McPherson | E38: F | F38: 18.5 | H38: 12 | I38: 12
A39: 38 | B39: Moore | C39: Scott | D39: Scott Moore | E39: M | F39: 25 | H39: 11 | I39: 11
A40: 39 | B40: Murray | C40: Mike | D40: Mike Murray | E40: M | F40: 21.4 | G40: yes | H40: 9 | I40: 9
A41: 40 | B41: Niemeyer | C41: Diana | D41: Diana Niemeyer | E41: F | F41: 20.3 | G41: yes | H41: 13 | I41: 13
A42: 41 | B42: O'Sullivan | C42: Amy | D42: Amy O'Sullivan | E42: F | F42: 22.5 | H42: 14 | I42: 15
A43: 42 | B43: Palmer | C43: Pat | D43: Pat Palmer | E43: M | F43: 36 | G43: yes | H43: 17 | I43: 16
A44: 43 | B44: Peterson | C44: Emilia | D44: Emilia Peterson | E44: F | F44: 44 | H44: 27 | I44: 27
A45: 44 | B45: Price | C45: Shaun | D45: Shaun Price | E45: M | F45: 43 | H45: 21 | I45: 20
A46: 45 | B46: Riggs | C46: Andy | D46: Andy Riggs | E46: M | F46: 36 | G46: yes | H46: 17 | I46: 16
A47: 46 | B47: Rodriguez | C47: Kevin | D47: Kevin Rodriguez | E47: M | F47: 36 | G47: yes | H47: 17 | I47: 16
A48: 47 | B48: Schmidt | C48: Tom | D48: Tom Schmidt | E48: M | F48: 27.1 | H48: 12 | I48: 12
A49: 48 | B49: Schultz | C49: Nick | D49: Nick Schultz | E49: M | F49: 18.4 | G49: yes | H49: 8 | I49: 8
A50: 49 | B50: Wood | C50: Harry | D50: Harry Wood | E50: M | F50: 17.9 | G50: yes | H50: 8 | I50: 8
A51: 50 | B51: Young | C51: Dave | D51: Dave Young | E51: M | F51: 24 | G51: yes | H51: 11 | I51: 11
D66: =CONCATENATE(C66, " ", B66) -> 

Sheet print list
A1: Shotgun April 9
A2: ID | B2: Full Name | C2: MF | D2: Handicap | E2: Shotgun April 9 | F2: PLHCP 1-9
A3: 16 | B3: Justin Evans | C3: M | D3: 13.4 | E3: yes | F3: 5
A4: 49 | B4: Harry Wood | C4: M | D4: 17.9 | E4: yes | F4: 8
A5: 48 | B5: Nick Schultz | C5: M | D5: 18.4 | E5: yes | F5: 8
A6: 36 | B6: Andrew Matthews | C6: M | D6: 19 | E6: yes | F6: 8
A7: 5 | B7: Mike Burrows | C7: M | D7: 20.4 | E7: yes | F7: 9
A8: 39 | B8: Mike Murray | C8: M | D8: 21.4 | E8: yes | F8: 9
A9: 2 | B9: David Anderson | C9: M | D9: 21.5 | E9: yes | F9: 9
A10: 50 | B10: Dave Young | C10: M | D10: 24 | E10: yes | F10: 11
A11: 1 | B11: Frank Aaron | C11: M | D11: 24.3 | E11: yes | F11: 11
A12: 22 | B12: Daniel Gallagher | C12: M | D12: 26.4 | E12: yes | F12: 12
A13: 21 | B13: Chris Ford | C13: M | D13: 26.5 | E13: yes | F13: 12
A14: 11 | B14: Brett Daniel | C14: M | D14: 26.7 | E14: yes | F14: 12
A15: 42 | B15: Pat Palmer | C15: M | D15: 36 | E15: yes | F15: 17
A16: 45 | B16: Andy Riggs | C16: M | D16: 36 | E16: yes | F16: 17
A17: 46 | B17: Kevin Rodriguez | C17: M | D17: 36 | E17: yes | F17: 17
A18: 35 | B18: Mary Martinez | C18: F | D18: 14 | E18: yes | F18: 9
A19: 40 | B19: Diana Niemeyer | C19: F | D19: 20.3 | E19: yes | F19: 13
A20: 7 | B20: Annie Callahan | C20: F | D20: 22.9 | E20: yes | F20: 14
A21: 14 | B21: Kathy Dodge | C21: F | D21: 23.9 | E21: yes | F21: 15
A22: 19 | B22: Deborah Fitch | C22: F | D22: 24.6 | E22: yes | F22: 16
A23: 8 | B23: Sheri Chandler | C23: F | D23: 24.7 | E23: yes | F23: 16
A24: 3 | B24: Ellen Applegate | C24: F | D24: 27.9 | E24: yes | F24: 18
A25: 15 | B25: Angela Douglass | C25: F | D25: 28.5 | E25: yes | F25: 18
A26: 18 | B26: Heather Fisher | C26: F | D26: 28.5 | E26: yes | F26: 18
A27: 29 | B27: Julie Ipsen | C27: F | D27: 31.8 | E27: yes | F27: 20
A28: 33 | B28: Molly King | C28: F | D28: 36.4 | E28: yes | F28: 23
A29: 25 | B29: Beth Ann Goldberg | C29: F | D29: 43 | E29: yes | F29: 26

Sheet Flight schedule Odd 1-9
A1: Flight schedule Shotgun Greensome - Holes 1-9 | H1: =TODAY() -> 2015-04-13 | N1: Terminology used:
C2: 0.6 | F2: 0.4 | N2: Shotgun
A3: No 1 | B3: Player 1 | C3: HCP1 | D3: No 2 | E3: Player 2 | F3: HCP2 | G3: Extra Strokes | H3: Point score | K3: Game Scores | N3: Greensome
A4: Hole 1 | B4: Flight 1 | K4: Winning | L4: =MAX(L5:L24) -> 39 | M4: Rank
B5: =IFERROR(VLOOKUP($A5,Masterlist,4,FALSE),"") ->  | C5: =IFERROR(VLOOKUP($A5,Masterlist,8,FALSE),"") ->  | E5: =IFERROR(VLOOKUP($D5,Masterlist,4,FALSE),"") ->  | F5: =IFERROR(VLOOKUP($D5,Masterlist,8,FALSE),"") ->  | G5: =IF(D5>=1,(C5*$C$2)+(F5*$F$2),C5) ->  | K5: Flight 1 | L5: =H7 ->  | M5: =IFERROR(_xlfn.RANK.EQ(L5,$L$5:$L$14),"") -> 
B6: =IFERROR(VLOOKUP($A6,Masterlist,4,FALSE),"") ->  | C6: =IFERROR(VLOOKUP($A6,Masterlist,8,FALSE),"") ->  | E6: =IFERROR(VLOOKUP($D6,Masterlist,4,FALSE),"") ->  | F6: =IFERROR(VLOOKUP($D6,Masterlist,8,FALSE),"") ->  | G6: =IF(D6>=1,(C6*$C$2)+(F6*$F$2),C6) ->  | K6: Flight 2 | L6: =H11 ->  | M6: =IFERROR(_xlfn.RANK.EQ(L6,$L$5:$L$14)+COUNTIF(L$5:L5,L6),"") -> 
E7: Totaal | H7: =IF(SUM(H5:H6)<=0,"",SUM(H5:H6)) ->  | K7: Flight 3 | L7: =H15 ->  | M7: =IFERROR(_xlfn.RANK.EQ(L7,$L$5:$L$14)+COUNTIF(L$5:L6,L7),"") -> 
A8: Hole 2 | B8: Flight 2 | K8: Flight 4 | L8: =H19 -> 39 | M8: =IFERROR(_xlfn.RANK.EQ(L8,$L$5:$L$14)+COUNTIF(L$5:L7,L8),"") -> 1
A9: 7 | B9: =IFERROR(VLOOKUP($A9,Masterlist,4,FALSE),"") -> Annie Callahan | C9: =IFERROR(VLOOKUP($A9,Masterlist,8,FALSE),"") -> 15 | D9: 42 | E9: =IFERROR(VLOOKUP($D9,Masterlist,4,FALSE),"") -> Pat Palmer | F9: =IFERROR(VLOOKUP($D9,Masterlist,8,FALSE),"") -> 17 | G9: =IF(D9>=1,(C9*$C$2)+(F9*$F$2),C9) -> 15.8 | K9: Flight 5 | L9: =H23 -> 34 | M9: =IFERROR(_xlfn.RANK.EQ(L9,$L$5:$L$14)+COUNTIF(L$5:L8,L9),"") -> 4
A10: 14 | B10: =IFERROR(VLOOKUP($A10,Masterlist,4,FALSE),"") -> Kathy Dodge | C10: =IFERROR(VLOOKUP($A10,Masterlist,8,FALSE),"") -> 15 | D10: 45 | E10: =IFERROR(VLOOKUP($D10,Masterlist,4,FALSE),"") -> Andy Riggs | F10: =IFERROR(VLOOKUP($D10,Masterlist,8,FALSE),"") -> 17 | G10: =IF(D10>=1,(C10*$C$2)+(F10*$F$2),C10) -> 15.8 | K10: Flight 6 | L10: =H27 -> 35 | M10: =IFERROR(_xlfn.RANK.EQ(L10,$L$5:$L$14)+COUNTIF(L$5:L9,L10),"") -> 3
B11: =IFERROR(VLOOKUP($A11,Masterlist,4,FALSE),"") ->  | C11: =IFERROR(VLOOKUP($A11,Masterlist,7,FALSE),"") ->  | E11: Totaal | H11: =IF(SUM(H9:H10)<=0,"",SUM(H9:H10)) ->  | K11: Flight 7 | L11: =H31 -> 38 | M11: =IFERROR(_xlfn.RANK.EQ(L11,$L$5:$L$14)+COUNTIF(L$5:L10,L11),"") -> 2
A12: Hole 3 | B12: Flight 3 | K12: Flight 8 | L12: =H35 ->  | M12: =IFERROR(_xlfn.RANK.EQ(L12,$L$5:$L$14)+COUNTIF(L$5:L11,L12),"") -> 
A13: 5 | B13: =IFERROR(VLOOKUP($A13,Masterlist,4,FALSE),"") -> Mike Burrows | C13: =IFERROR(VLOOKUP($A13,Masterlist,8,FALSE),"") -> 9 | D13: 19 | E13: =IFERROR(VLOOKUP($D13,Masterlist,4,FALSE),"") -> Deborah Fitch | F13: =IFERROR(VLOOKUP($D13,Masterlist,8,FALSE),"") -> 16 | G13: =IF(D13>=1,(C13*$C$2)+(F13*$F$2),C13) -> 11.8 | K13: Flight 9 | L13: =H39 ->  | M13: =IFERROR(_xlfn.RANK.EQ(L13,$L$5:$L$14)+COUNTIF(L$5:L12,L13),"") -> 
A14: 8 | B14: =IFERROR(VLOOKUP($A14,Masterlist,4,FALSE),"") -> Sheri Chandler | C14: =IFERROR(VLOOKUP($A14,Masterlist,8,FALSE),"") -> 16 | D14: 46 | E14: =IFERROR(VLOOKUP($D14,Masterlist,4,FALSE),"") -> Kevin Rodriguez | F14: =IFERROR(VLOOKUP($D14,Masterlist,8,FALSE),"") -> 17 | G14: =IF(D14>=1,(C14*$C$2)+(F14*$F$2),C14) -> 16.4 | K14: Flight 10 | L14: =H43 ->  | M14: =IFERROR(_xlfn.RANK.EQ(L14,$L$5:$L$14)+COUNTIF(L$5:L13,L14),"") -> 
E15: Totaal | H15: =IF(SUM(H13:H14)<=0,"",SUM(H13:H14)) -> 
A16: Hole 4 | B16: Flight 4
A17: 36 | B17: =IFERROR(VLOOKUP($A17,Masterlist,4,FALSE),"") -> Andrew Matthews | C17: =IFERROR(VLOOKUP($A17,Masterlist,8,FALSE),"") -> 8 | D17: 15 | E17: =IFERROR(VLOOKUP($D17,Masterlist,4,FALSE),"") -> Angela Douglass | F17: =IFERROR(VLOOKUP($D17,Masterlist,8,FALSE),"") -> 18 | G17: =IF(D17>=1,(C17*$C$2)+(F17*$F$2),C17) -> 12 | H17: 19
A18: 48 | B18: =IFERROR(VLOOKUP($A18,Masterlist,4,FALSE),"") -> Nick Schultz | C18: =IFERROR(VLOOKUP($A18,Masterlist,8,FALSE),"") -> 8 | D18: 3 | E18: =IFERROR(VLOOKUP($D18,Masterlist,4,FALSE),"") -> Ellen Applegate | F18: =IFERROR(VLOOKUP($D18,Masterlist,8,FALSE),"") -> 18 | G18: =IF(D18>=1,(C18*$C$2)+(F18*$F$2),C18) -> 12 | H18: 20
E19: Totaal | H19: =IF(SUM(H17:H18)<=0,"",SUM(H17:H18)) -> 39
A20: Hole 5 | B20: Flight 5
A21: 11 | B21: =IFERROR(VLOOKUP($A21,Masterlist,4,FALSE),"") -> Brett Daniel | C21: =IFERROR(VLOOKUP($A21,Masterlist,8,FALSE),"") -> 12 | D21: 18 | E21: =IFERROR(VLOOKUP($D21,Masterlist,4,FALSE),"") -> Heather Fisher | F21: =IFERROR(VLOOKUP($D21,Masterlist,8,FALSE),"") -> 18 | G21: =IF(D21>=1,(C21*$C$2)+(F21*$F$2),C21) -> 14.4 | H21: 16
A22: 39 | B22: =IFERROR(VLOOKUP($A22,Masterlist,4,FALSE),"") -> Mike Murray | C22: =IFERROR(VLOOKUP($A22,Masterlist,8,FALSE),"") -> 9 | D22: 29 | E22: =IFERROR(VLOOKUP($D22,Masterlist,4,FALSE),"") -> Julie Ipsen | F22: =IFERROR(VLOOKUP($D22,Masterlist,8,FALSE),"") -> 20 | G22: =IF(D22>=1,(C22*$C$2)+(F22*$F$2),C22) -> 13.4 | H22: 18
E23: Totaal | H23: =IF(SUM(H21:H22)<=0,"",SUM(H21:H22)) -> 34
A24: Hole 6 | B24: Flight 6
A25: 2 | B25: =IFERROR(VLOOKUP($A25,Masterlist,4,FALSE),"") -> David Anderson | C25: =IFERROR(VLOOKUP($A25,Masterlist,8,FALSE),"") ->  | D25: 33 | E25: =IFERROR(VLOOKUP($D25,Masterlist,4,FALSE),"") -> Molly King | F25: =IFERROR(VLOOKUP($D25,Masterlist,8,FALSE),"") -> 23 | G25: =IF(D25>=1,(C25*$C$2)+(F25*$F$2),C25) ->  | H25: 20
A26: 21 | B26: =IFERROR(VLOOKUP($A26,Masterlist,4,FALSE),"") -> Chris Ford | C26: =IFERROR(VLOOKUP($A26,Masterlist,8,FALSE),"") -> 12 | D26: 25 | E26: =IFERROR(VLOOKUP($D26,Masterlist,4,FALSE),"") -> Beth Ann Goldberg | F26: =IFERROR(VLOOKUP($D26,Masterlist,8,FALSE),"") -> 26 | G26: =IF(D26>=1,(C26*$C$2)+(F26*$F$2),C26) -> 17.6 | H26: 15
E27: Totaal | H27: =IF(SUM(H25:H26)<=0,"",SUM(H25:H26)) -> 35
A28: Hole 7 | B28: Flight 7
A29: 50 | B29: =IFERROR(VLOOKUP($A29,Masterlist,4,FALSE),"") -> Dave Young | C29: =IFERROR(VLOOKUP($A29,Masterlist,8,FALSE),"") -> 11 | D29: 22 | E29: =IFERROR(VLOOKUP($D29,Masterlist,4,FALSE),"") -> Daniel Gallagher | F29: =IFERROR(VLOOKUP($D29,Masterlist,8,FALSE),"") -> 12 | G29: =IF(D29>=1,(C29*$C$2)+(F29*$F$2),C29) -> 11.4 | H29: 19
A30: 1 | B30: =IFERROR(VLOOKUP($A30,Masterlist,4,FALSE),"") -> Frank Aaron | C30: =IFERROR(VLOOKUP($A30,Masterlist,8,FALSE),"") ->  | E30: =IFERROR(VLOOKUP($D30,Masterlist,4,FALSE),"") ->  | F30: =IFERROR(VLOOKUP($D30,Masterlist,8,FALSE),"") ->  | G30: =IF(D30>=1,(C30*$C$2)+(F30*$F$2),C30) ->  | H30: 19
E31: Totaal | H31: =IF(SUM(H29:H30)<=0,"",SUM(H29:H30)) -> 38
A32: Hole 8 | B32: Flight 8
B33: =IFERROR(VLOOKUP($A33,Masterlist,4,FALSE),"") ->  | C33: =IFERROR(VLOOKUP($A33,Masterlist,8,FALSE),"") ->  | E33: =IFERROR(VLOOKUP($D33,Masterlist,4,FALSE),"") ->  | F33: =IFERROR(VLOOKUP($D33,Masterlist,8,FALSE),"") ->  | G33: =IF(D33>=1,(C33*$C$2)+(F33*$F$2),C33) -> 
B34: =IFERROR(VLOOKUP($A34,Masterlist,4,FALSE),"") ->  | C34: =IFERROR(VLOOKUP($A34,Masterlist,8,FALSE),"") ->  | E34: =IFERROR(VLOOKUP($D34,Masterlist,4,FALSE),"") ->  | F34: =IFERROR(VLOOKUP($D34,Masterlist,8,FALSE),"") ->  | G34: =IF(D34>=1,(C34*$C$2)+(F34*$F$2),C34) -> 
E35: Totaal | H35: =IF(SUM(H33:H34)<=0,"",SUM(H33:H34)) -> 
A36: Hole 9 | B36: Flight 9
B37: =IFERROR(VLOOKUP($A37,Masterlist,4,FALSE),"") ->  | C37: =IFERROR(VLOOKUP($A37,Masterlist,8,FALSE),"") ->  | E37: =IFERROR(VLOOKUP($D37,Masterlist,4,FALSE),"") ->  | F37: =IFERROR(VLOOKUP($D37,Masterlist,8,FALSE),"") ->  | G37: =IF(D37>=1,(C37*$C$2)+(F37*$F$2),C37) -> 
B38: =IFERROR(VLOOKUP($A38,Masterlist,4,FALSE),"") ->  | C38: =IFERROR(VLOOKUP($A38,Masterlist,8,FALSE),"") ->  | E38: =IFERROR(VLOOKUP($D38,Masterlist,4,FALSE),"") ->  | F38: =IFERROR(VLOOKUP($D38,Masterlist,8,FALSE),"") ->  | G38: =IF(D38>=1,(C38*$C$2)+(F38*$F$2),C38) -> 
E39: Totaal | H39: =IF(SUM(H37:H38)<=0,"",SUM(H37:H38)) -> 
A40: Hole | B40: Flight 10
B41: =IFERROR(VLOOKUP($A41,Masterlist,4,FALSE),"") ->  | C41: =IFERROR(VLOOKUP($A41,Masterlist,8,FALSE),"") ->  | E41: =IFERROR(VLOOKUP($D41,Masterlist,4,FALSE),"") ->  | F41: =IFERROR(VLOOKUP($D41,Masterlist,8,FALSE),"") ->  | G41: =IF(D41>=1,(C41*$C$2)+(F41*$F$2),C41) -> 
B42: =IFERROR(VLOOKUP($A42,Masterlist,4,FALSE),"") ->  | C42: =IFERROR(VLOOKUP($A42,Masterlist,8,FALSE),"") ->  | E42: =IFERROR(VLOOKUP($D42,Masterlist,4,FALSE),"") ->  | F42: =IFERROR(VLOOKUP($D42,Masterlist,8,FALSE),"") ->  | G42: =IF(D42>=1,(C42*$C$2)+(F42*$F$2),C42) -> 
E43: Totaal | H43: =IF(SUM(H41:H42)<=0,"",SUM(H41:H42)) -> 

Sheet Labels 1-9
A1: Hole | B1: Flight | C1: Player 1 | D1: Player 2 | E1: Strokes | F1: Extra Strokes
A2: ='Flight schedule Odd 1-9'!A4 -> Hole 1 | B2: ='Flight schedule Odd 1-9'!B4 -> Flight 1 | C2: ='Flight schedule Odd 1-9'!B5 ->  | D2: ='Flight schedule Odd 1-9'!E5 ->  | E2: ='Flight schedule Odd 1-9'!G5 ->  | F2: =IFERROR(IF(E2<=0,"",ROUND(E2,0)),"") -> 
A3: ='Flight schedule Odd 1-9'!A4 -> Hole 1 | B3: ='Flight schedule Odd 1-9'!B4 -> Flight 1 | C3: ='Flight schedule Odd 1-9'!B6 ->  | D3: ='Flight schedule Odd 1-9'!E6 ->  | E3: ='Flight schedule Odd 1-9'!G6 ->  | F3: =IFERROR(IF(E3<=0,"",ROUND(E3,0)),"") -> 
A4: ='Flight schedule Odd 1-9'!A8 -> Hole 2 | B4: ='Flight schedule Odd 1-9'!B8 -> Flight 2 | C4: ='Flight schedule Odd 1-9'!B9 -> Annie Callahan | D4: ='Flight schedule Odd 1-9'!E9 -> Pat Palmer | E4: ='Flight schedule Odd 1-9'!G9 -> 15.8 | F4: 16
A5: ='Flight schedule Odd 1-9'!A8 -> Hole 2 | B5: ='Flight schedule Odd 1-9'!B8 -> Flight 2 | C5: ='Flight schedule Odd 1-9'!B10 -> Kathy Dodge | D5: ='Flight schedule Odd 1-9'!E10 -> Andy Riggs | E5: ='Flight schedule Odd 1-9'!G10 -> 15.8 | F5: 16
A6: ='Flight schedule Odd 1-9'!A12 -> Hole 3 | B6: ='Flight schedule Odd 1-9'!B12 -> Flight 3 | C6: ='Flight schedule Odd 1-9'!B13 -> Mike Burrows | D6: ='Flight schedule Odd 1-9'!E13 -> Deborah Fitch | E6: ='Flight schedule Odd 1-9'!G13 -> 11.8 | F6: 12
A7: ='Flight schedule Odd 1-9'!A12 -> Hole 3 | B7: ='Flight schedule Odd 1-9'!B12 -> Flight 3 | C7: ='Flight schedule Odd 1-9'!B14 -> Sheri Chandler | D7: ='Flight schedule Odd 1-9'!E14 -> Kevin Rodriguez | E7: ='Flight schedule Odd 1-9'!G14 -> 16.4 | F7: 16
A8: ='Flight schedule Odd 1-9'!A16 -> Hole 4 | B8: ='Flight schedule Odd 1-9'!B16 -> Flight 4 | C8: ='Flight schedule Odd 1-9'!B17 -> Andrew Matthews | D8: ='Flight schedule Odd 1-9'!E17 -> Angela Douglass | E8: ='Flight schedule Odd 1-9'!G17 -> 12 | F8: 12
A9: ='Flight schedule Odd 1-9'!A16 -> Hole 4 | B9: ='Flight schedule Odd 1-9'!B16 -> Flight 4 | C9: ='Flight schedule Odd 1-9'!B18 -> Nick Schultz | D9: ='Flight schedule Odd 1-9'!E18 -> Ellen Applegate | E9: ='Flight schedule Odd 1-9'!G18 -> 12 | F9: 12
A10: ='Flight schedule Odd 1-9'!A20 -> Hole 5 | B10: ='Flight schedule Odd 1-9'!B20 -> Flight 5 | C10: ='Flight schedule Odd 1-9'!B21 -> Brett Daniel | D10: ='Flight schedule Odd 1-9'!E21 -> Heather Fisher | E10: ='Flight schedule Odd 1-9'!G21 -> 14.4 | F10: 14
A11: ='Flight schedule Odd 1-9'!A20 -> Hole 5 | B11: ='Flight schedule Odd 1-9'!B20 -> Flight 5 | C11: ='Flight schedule Odd 1-9'!B22 -> Mike Murray | D11: ='Flight schedule Odd 1-9'!E22 -> Julie Ipsen | E11: ='Flight schedule Odd 1-9'!G22 -> 13.4 | F11: 13
A12: ='Flight schedule Odd 1-9'!A24 -> Hole 6 | B12: ='Flight schedule Odd 1-9'!B24 -> Flight 6 | C12: ='Flight schedule Odd 1-9'!B25 -> David Anderson | D12: ='Flight schedule Odd 1-9'!E25 -> Molly King | E12: ='Flight schedule Odd 1-9'!G25 -> 
A13: ='Flight schedule Odd 1-9'!A24 -> Hole 6 | B13: ='Flight schedule Odd 1-9'!B24 -> Flight 6 | C13: ='Flight schedule Odd 1-9'!B26 -> Chris Ford | D13: ='Flight schedule Odd 1-9'!E26 -> Beth Ann Goldberg | E13: ='Flight schedule Odd 1-9'!G26 -> 17.6 | F13: 18
A14: ='Flight schedule Odd 1-9'!A28 -> Hole 7 | B14: ='Flight schedule Odd 1-9'!B28 -> Flight 7 | C14: ='Flight schedule Odd 1-9'!B29 -> Dave Young | D14: ='Flight schedule Odd 1-9'!E29 -> Daniel Gallagher | E14: ='Flight schedule Odd 1-9'!G29 -> 11.4 | F14: 11
A15: ='Flight schedule Odd 1-9'!A28 -> Hole 7 | B15: ='Flight schedule Odd 1-9'!B28 -> Flight 7 | C15: ='Flight schedule Odd 1-9'!B30 -> Frank Aaron | D15: ='Flight schedule Odd 1-9'!E30 ->  | E15: ='Flight schedule Odd 1-9'!G30 -> 
A16: ='Flight schedule Odd 1-9'!A32 -> Hole 8 | B16: ='Flight schedule Odd 1-9'!B32 -> Flight 8 | C16: ='Flight schedule Odd 1-9'!B33 ->  | D16: ='Flight schedule Odd 1-9'!E33 ->  | E16: ='Flight schedule Odd 1-9'!G33 -> 
A17: ='Flight schedule Odd 1-9'!A32 -> Hole 8 | B17: ='Flight schedule Odd 1-9'!B32 -> Flight 8 | C17: ='Flight schedule Odd 1-9'!B34 ->  | D17: ='Flight schedule Odd 1-9'!E34 ->  | E17: ='Flight schedule Odd 1-9'!G34 -> 
A18: ='Flight schedule Odd 1-9'!A36 -> Hole 9 | B18: ='Flight schedule Odd 1-9'!B36 -> Flight 9 | C18: ='Flight schedule Odd 1-9'!B37 ->  | D18: ='Flight schedule Odd 1-9'!E37 ->  | E18: ='Flight schedule Odd 1-9'!G37 -> 
A19: ='Flight schedule Odd 1-9'!A36 -> Hole 9 | B19: ='Flight schedule Odd 1-9'!B36 -> Flight 9 | C19: ='Flight schedule Odd 1-9'!B38 ->  | D19: ='Flight schedule Odd 1-9'!E38 ->  | E19: ='Flight schedule Odd 1-9'!G38 -> 
A20: ='Flight schedule Odd 1-9'!A40 -> Hole | B20: ='Flight schedule Odd 1-9'!B40 -> Flight 10 | C20: ='Flight schedule Odd 1-9'!B41 ->  | D20: ='Flight schedule Odd 1-9'!E41 ->  | E20: ='Flight schedule Odd 1-9'!G41 -> 
A21: ='Flight schedule Odd 1-9'!A40 -> Hole | B21: ='Flight schedule Odd 1-9'!B40 -> Flight 10 | C21: ='Flight schedule Odd 1-9'!B42 ->  | D21: ='Flight schedule Odd 1-9'!E42 ->  | E21: ='Flight schedule Odd 1-9'!G42 -> 

Sheet Flight schedule Even 10-18
A1: FlightIndeling Shotgun Match play - Holes 10-18 | H1: =TODAY() -> 2015-04-13 | N1: Terminology used:
C2: 0.6 | F2: 0.4 | N2: Shotgun
A3: No 1 | B3: Player 1 | C3: HCP1 | D3: No 2 | E3: PLayer 2 | F3: HCP2 | G3: Extra Strokes | H3: Point score | K3: Game Scores | N3: Greensome
A4: Hole 10 | B4: Flight 1 | K4: Winning | L4: =MAX(L5:L24) -> 39 | M4: Rank
A5: 16 | B5: =IFERROR(VLOOKUP($A5,Masterlist,4,FALSE),"") -> Justin Evans | C5: =IFERROR(VLOOKUP($A5,Masterlist,8,FALSE),"") -> 5 | D5: 35 | E5: =IFERROR(VLOOKUP($D5,Masterlist,4,FALSE),"") -> Mary Martinez | F5: =IFERROR(VLOOKUP($D5,Masterlist,8,FALSE),"") -> 9 | G5: =IF(D5>=1,(C5*$C$2)+(F5*$F$2),C5) -> 6.6 | H5: 18 | K5: Flight 1 | L5: =H7 -> 36 | M5: =IFERROR(_xlfn.RANK.EQ(L5,$L$5:$L$14),"") -> 2
A6: 40 | B6: =IFERROR(VLOOKUP($A6,Masterlist,4,FALSE),"") -> Diana Niemeyer | C6: =IFERROR(VLOOKUP($A6,Masterlist,8,FALSE),"") -> 13 | D6: 49 | E6: =IFERROR(VLOOKUP($D6,Masterlist,4,FALSE),"") -> Harry Wood | F6: =IFERROR(VLOOKUP($D6,Masterlist,8,FALSE),"") -> 8 | G6: =IF(D6>=1,(C6*$C$2)+(F6*$F$2),C6) -> 11 | H6: 18 | K6: Flight 2 | L6: =H11 -> 31 | M6: =IFERROR(_xlfn.RANK.EQ(L6,$L$5:$L$14)+COUNTIF(L$5:L5,L6),"") -> 6
E7: Total | H7: =IF(SUM(H5:H6)<=0,"",SUM(H5:H6)) -> 36 | K7: Flight 3 | L7: =H15 -> 19 | M7: =IFERROR(_xlfn.RANK.EQ(L7,$L$5:$L$14)+COUNTIF(L$5:L6,L7),"") -> 7
A8: Hole 11 | B8: Flight 2 | K8: Flight 4 | L8: =H19 -> 35 | M8: =IFERROR(_xlfn.RANK.EQ(L8,$L$5:$L$14)+COUNTIF(L$5:L7,L8),"") -> 4
A9: 48 | B9: =IFERROR(VLOOKUP($A9,Masterlist,4,FALSE),"") -> Nick Schultz | C9: =IFERROR(VLOOKUP($A9,Masterlist,8,FALSE),"") -> 8 | D9: 15 | E9: =IFERROR(VLOOKUP($D9,Masterlist,4,FALSE),"") -> Angela Douglass | F9: =IFERROR(VLOOKUP($D9,Masterlist,8,FALSE),"") -> 18 | G9: =IF(D9>=1,(C9*$C$2)+(F9*$F$2),C9) -> 12 | H9: 12 | K9: Flight 5 | L9: =H23 -> 34 | M9: =IFERROR(_xlfn.RANK.EQ(L9,$L$5:$L$14)+COUNTIF(L$5:L8,L9),"") -> 5
A10: 36 | B10: =IFERROR(VLOOKUP($A10,Masterlist,4,FALSE),"") -> Andrew Matthews | C10: =IFERROR(VLOOKUP($A10,Masterlist,8,FALSE),"") -> 8 | D10: 19 | E10: =IFERROR(VLOOKUP($D10,Masterlist,4,FALSE),"") -> Deborah Fitch | F10: =IFERROR(VLOOKUP($D10,Masterlist,8,FALSE),"") -> 16 | G10: =IF(D10>=1,(C10*$C$2)+(F10*$F$2),C10) -> 11.2 | H10: 19 | K10: Flight 6 | L10: =H27 -> 36 | M10: =IFERROR(_xlfn.RANK.EQ(L10,$L$5:$L$14)+COUNTIF(L$5:L9,L10),"") -> 3
B11: =IFERROR(VLOOKUP($A11,Masterlist,4,FALSE),"") ->  | C11: =IFERROR(VLOOKUP($A11,Masterlist,8,FALSE),"") ->  | E11: Total | H11: =IF(SUM(H9:H10)<=0,"",SUM(H9:H10)) -> 31 | K11: Flight 7 | L11: =H31 -> 39 | M11: =IFERROR(_xlfn.RANK.EQ(L11,$L$5:$L$14)+COUNTIF(L$5:L10,L11),"") -> 1
A12: Hole 12 | B12: Flight 3 | K12: Flight 8 | L12: =H35 ->  | M12: =IFERROR(_xlfn.RANK.EQ(L12,$L$5:$L$14)+COUNTIF(L$5:L11,L12),"") -> 
A13: 5 | B13: =IFERROR(VLOOKUP($A13,Masterlist,4,FALSE),"") -> Mike Burrows | C13: =IFERROR(VLOOKUP($A13,Masterlist,8,FALSE),"") -> 9 | D13: 8 | E13: =IFERROR(VLOOKUP($D13,Masterlist,4,FALSE),"") -> Sheri Chandler | F13: =IFERROR(VLOOKUP($D13,Masterlist,8,FALSE),"") -> 16 | G13: =IF(D13>=1,(C13*$C$2)+(F13*$F$2),C13) -> 11.8 | H13: 10 | K13: Flight 9 | L13: =H39 ->  | M13: =IFERROR(_xlfn.RANK.EQ(L13,$L$5:$L$14)+COUNTIF(L$5:L12,L13),"") -> 
A14: 39 | B14: =IFERROR(VLOOKUP($A14,Masterlist,4,FALSE),"") -> Mike Murray | C14: =IFERROR(VLOOKUP($A14,Masterlist,8,FALSE),"") -> 9 | D14: 3 | E14: =IFERROR(VLOOKUP($D14,Masterlist,4,FALSE),"") -> Ellen Applegate | F14: =IFERROR(VLOOKUP($D14,Masterlist,8,FALSE),"") -> 18 | G14: =IF(D14>=1,(C14*$C$2)+(F14*$F$2),C14) -> 12.6 | H14: 9 | K14: Flight 10 | L14: =H43 ->  | M14: =IFERROR(_xlfn.RANK.EQ(L14,$L$5:$L$14)+COUNTIF(L$5:L13,L14),"") -> 
E15: Total | H15: =IF(SUM(H13:H14)<=0,"",SUM(H13:H14)) -> 19
A16: Hole 13 | B16: Flight 4
A17: 2 | B17: =IFERROR(VLOOKUP($A17,Masterlist,4,FALSE),"") -> David Anderson | C17: =IFERROR(VLOOKUP($A17,Masterlist,8,FALSE),"") ->  | D17: 15 | E17: =IFERROR(VLOOKUP($D17,Masterlist,4,FALSE),"") -> Angela Douglass | F17: =IFERROR(VLOOKUP($D17,Masterlist,8,FALSE),"") -> 18 | G17: =IF(D17>=1,(C17*$C$2)+(F17*$F$2),C17) ->  | H17: 20
A18: 50 | B18: =IFERROR(VLOOKUP($A18,Masterlist,4,FALSE),"") -> Dave Young | C18: =IFERROR(VLOOKUP($A18,Masterlist,8,FALSE),"") -> 11 | D18: 18 | E18: =IFERROR(VLOOKUP($D18,Masterlist,4,FALSE),"") -> Heather Fisher | F18: =IFERROR(VLOOKUP($D18,Masterlist,8,FALSE),"") -> 18 | G18: =IF(D18>=1,(C18*$C$2)+(F18*$F$2),C18) -> 13.8 | H18: 15
E19: Total | H19: =IF(SUM(H17:H18)<=0,"",SUM(H17:H18)) -> 35
A20: Hole 14 | B20: Flight 5
A21: 22 | B21: =IFERROR(VLOOKUP($A21,Masterlist,4,FALSE),"") -> Daniel Gallagher | C21: =IFERROR(VLOOKUP($A21,Masterlist,8,FALSE),"") -> 12 | D21: 29 | E21: =IFERROR(VLOOKUP($D21,Masterlist,4,FALSE),"") -> Julie Ipsen | F21: =IFERROR(VLOOKUP($D21,Masterlist,8,FALSE),"") -> 20 | G21: =IF(D21>=1,(C21*$C$2)+(F21*$F$2),C21) -> 15.2 | H21: 16
A22: 21 | B22: =IFERROR(VLOOKUP($A22,Masterlist,4,FALSE),"") -> Chris Ford | C22: =IFERROR(VLOOKUP($A22,Masterlist,8,FALSE),"") -> 12 | D22: 33 | E22: =IFERROR(VLOOKUP($D22,Masterlist,4,FALSE),"") -> Molly King | F22: =IFERROR(VLOOKUP($D22,Masterlist,8,FALSE),"") -> 23 | G22: =IF(D22>=1,(C22*$C$2)+(F22*$F$2),C22) -> 16.4 | H22: 18
E23: Total | H23: =IF(SUM(H21:H22)<=0,"",SUM(H21:H22)) -> 34
A24: Hole 15 | B24: Flight 6
A25: 11 | B25: =IFERROR(VLOOKUP($A25,Masterlist,4,FALSE),"") -> Brett Daniel | C25: =IFERROR(VLOOKUP($A25,Masterlist,8,FALSE),"") -> 12 | D25: 25 | E25: =IFERROR(VLOOKUP($D25,Masterlist,4,FALSE),"") -> Beth Ann Goldberg | F25: =IFERROR(VLOOKUP($D25,Masterlist,8,FALSE),"") -> 26 | G25: =IF(D25>=1,(C25*$C$2)+(F25*$F$2),C25) -> 17.6 | H25: 17
A26: 42 | B26: =IFERROR(VLOOKUP($A26,Masterlist,4,FALSE),"") -> Pat Palmer | C26: =IFERROR(VLOOKUP($A26,Masterlist,8,FALSE),"") -> 17 | E26: =IFERROR(VLOOKUP($D26,Masterlist,4,FALSE),"") ->  | F26: =IFERROR(VLOOKUP($D26,Masterlist,8,FALSE),"") ->  | G26: =IF(D26>=1,(C26*$C$2)+(F26*$F$2),C26) -> 17 | H26: 19
B27: =IFERROR(VLOOKUP($A27,Masterlist,4,FALSE),"") ->  | C27: =IFERROR(VLOOKUP($A27,Masterlist,8,FALSE),"") ->  | E27: Total | H27: =IF(SUM(H25:H26)<=0,"",SUM(H25:H26)) -> 36
A28: Hole 16 | B28: Flight 7
A29: 45 | B29: =IFERROR(VLOOKUP($A29,Masterlist,4,FALSE),"") -> Andy Riggs | C29: =IFERROR(VLOOKUP($A29,Masterlist,8,FALSE),"") -> 17 | D29: 46 | E29: =IFERROR(VLOOKUP($D29,Masterlist,4,FALSE),"") -> Kevin Rodriguez | F29: =IFERROR(VLOOKUP($D29,Masterlist,8,FALSE),"") -> 17 | G29: =IF(D29>=1,(C29*$C$2)+(F29*$F$2),C29) -> 17 | H29: 19
B30: =IFERROR(VLOOKUP($A30,Masterlist,4,FALSE),"") ->  | C30: =IFERROR(VLOOKUP($A30,Masterlist,8,FALSE),"") ->  | E30: =IFERROR(VLOOKUP($D30,Masterlist,4,FALSE),"") ->  | F30: =IFERROR(VLOOKUP($D30,Masterlist,8,FALSE),"") ->  | G30: =IF(D30>=1,(C30*$C$2)+(F30*$F$2),C30) ->  | H30: 20
E31: Total | H31: =IF(SUM(H29:H30)<=0,"",SUM(H29:H30)) -> 39
A32: Hole 17 | B32: Flight 8
B33: =IFERROR(VLOOKUP($A33,Masterlist,4,FALSE),"") ->  | C33: =IFERROR(VLOOKUP($A33,Masterlist,8,FALSE),"") ->  | E33: =IFERROR(VLOOKUP($D33,Masterlist,4,FALSE),"") ->  | F33: =IFERROR(VLOOKUP($D33,Masterlist,8,FALSE),"") ->  | G33: =IF(D33>=1,(C33*$C$2)+(F33*$F$2),C33) -> 
B34: =IFERROR(VLOOKUP($A34,Masterlist,4,FALSE),"") ->  | C34: =IFERROR(VLOOKUP($A34,Masterlist,8,FALSE),"") ->  | E34: =IFERROR(VLOOKUP($D34,Masterlist,4,FALSE),"") ->  | F34: =IFERROR(VLOOKUP($D34,Masterlist,8,FALSE),"") ->  | G34: =IF(D34>=1,(C34*$C$2)+(F34*$F$2),C34) -> 
E35: Total | H35: =IF(SUM(H33:H34)<=0,"",SUM(H33:H34)) -> 
A36: Hole 18 | B36: Flight 9
B37: =IFERROR(VLOOKUP($A37,Masterlist,4,FALSE),"") ->  | C37: =IFERROR(VLOOKUP($A37,Masterlist,8,FALSE),"") ->  | E37: =IFERROR(VLOOKUP($D37,Masterlist,4,FALSE),"") ->  | F37: =IFERROR(VLOOKUP($D37,Masterlist,8,FALSE),"") ->  | G37: =IF(D37>=1,(C37*$C$2)+(F37*$F$2),C37) -> 
B38: =IFERROR(VLOOKUP($A38,Masterlist,4,FALSE),"") ->  | C38: =IFERROR(VLOOKUP($A38,Masterlist,8,FALSE),"") ->  | E38: =IFERROR(VLOOKUP($D38,Masterlist,4,FALSE),"") ->  | F38: =IFERROR(VLOOKUP($D38,Masterlist,8,FALSE),"") ->  | G38: =IF(D38>=1,(C38*$C$2)+(F38*$F$2),C38) -> 
E39: Total | H39: =IF(SUM(H37:H38)<=0,"",SUM(H37:H38)) -> 
A40: Hole | B40: Flight 10
B41: =IFERROR(VLOOKUP($A41,Masterlist,4,FALSE),"") ->  | C41: =IFERROR(VLOOKUP($A41,Masterlist,8,FALSE),"") ->  | E41: =IFERROR(VLOOKUP($D41,Masterlist,4,FALSE),"") ->  | F41: =IFERROR(VLOOKUP($D41,Masterlist,8,FALSE),"") ->  | G41: =IF(D41>=1,(C41*$C$2)+(F41*$F$2),C41) -> 
B42: =IFERROR(VLOOKUP($A42,Masterlist,4,FALSE),"") ->  | C42: =IFERROR(VLOOKUP($A42,Masterlist,8,FALSE),"") ->  | E42: =IFERROR(VLOOKUP($D42,Masterlist,4,FALSE),"") ->  | F42: =IFERROR(VLOOKUP($D42,Masterlist,8,FALSE),"") ->  | G42: =IF(D42>=1,(C42*$C$2)+(F42*$F$2),C42) -> 
E43: Total | H43: =IF(SUM(H41:H42)<=0,"",SUM(H41:H42)) -> 

Sheet Labels Even 10-18
A1: Hole | B1: Flight | C1: Player 1 | D1: Player 2 | E1: Strokes | F1: Extra Strokes
A2: ='Flight schedule Even 10-18'!A4 -> Hole 10 | B2: ='Flight schedule Even 10-18'!B4 -> Flight 1 | C2: ='Flight schedule Even 10-18'!B5 -> Justin Evans | D2: ='Flight schedule Even 10-18'!E5 -> Mary Martinez | E2: ='Flight schedule Even 10-18'!G5 -> 6.6 | F2: =IFERROR(IF(E2<0,"",ROUND(E2,0)),"") -> 7
A3: ='Flight schedule Even 10-18'!A4 -> Hole 10 | B3: ='Flight schedule Even 10-18'!B4 -> Flight 1 | C3: ='Flight schedule Even 10-18'!B6 -> Diana Niemeyer | D3: ='Flight schedule Even 10-18'!E6 -> Harry Wood | E3: ='Flight schedule Even 10-18'!G6 -> 11 | F3: =IFERROR(IF(E3<0,"",ROUND(E3,0)),"") -> 11
A4: ='Flight schedule Even 10-18'!A8 -> Hole 11 | B4: ='Flight schedule Even 10-18'!B8 -> Flight 2 | C4: ='Flight schedule Even 10-18'!B9 -> Nick Schultz | D4: ='Flight schedule Even 10-18'!E9 -> Angela Douglass | E4: ='Flight schedule Even 10-18'!G9 -> 12 | F4: 12
A5: ='Flight schedule Even 10-18'!A8 -> Hole 11 | B5: ='Flight schedule Even 10-18'!B8 -> Flight 2 | C5: ='Flight schedule Even 10-18'!B10 -> Andrew Matthews | D5: ='Flight schedule Even 10-18'!E10 -> Deborah Fitch | E5: ='Flight schedule Even 10-18'!G10 -> 11.2 | F5: 11
A6: ='Flight schedule Even 10-18'!A12 -> Hole 12 | B6: ='Flight schedule Even 10-18'!B12 -> Flight 3 | C6: ='Flight schedule Even 10-18'!B13 -> Mike Burrows | D6: ='Flight schedule Even 10-18'!E13 -> Sheri Chandler | E6: ='Flight schedule Even 10-18'!G13 -> 11.8 | F6: 12
A7: ='Flight schedule Even 10-18'!A12 -> Hole 12 | B7: ='Flight schedule Even 10-18'!B12 -> Flight 3 | C7: ='Flight schedule Even 10-18'!B14 -> Mike Murray | D7: ='Flight schedule Even 10-18'!E14 -> Ellen Applegate | E7: ='Flight schedule Even 10-18'!G14 -> 12.6 | F7: 13
A8: ='Flight schedule Even 10-18'!A16 -> Hole 13 | B8: ='Flight schedule Even 10-18'!B16 -> Flight 4 | C8: ='Flight schedule Even 10-18'!B17 -> David Anderson | D8: ='Flight schedule Even 10-18'!E17 -> Angela Douglass | E8: ='Flight schedule Even 10-18'!G17 -> 
A9: ='Flight schedule Even 10-18'!A16 -> Hole 13 | B9: ='Flight schedule Even 10-18'!B16 -> Flight 4 | C9: ='Flight schedule Even 10-18'!B18 -> Dave Young | D9: ='Flight schedule Even 10-18'!E18 -> Heather Fisher | E9: ='Flight schedule Even 10-18'!G18 -> 13.8 | F9: 14
A10: ='Flight schedule Even 10-18'!A20 -> Hole 14 | B10: ='Flight schedule Even 10-18'!B20 -> Flight 5 | C10: ='Flight schedule Even 10-18'!B21 -> Daniel Gallagher | D10: ='Flight schedule Even 10-18'!E21 -> Julie Ipsen | E10: ='Flight schedule Even 10-18'!G21 -> 15.2 | F10: 15
A11: ='Flight schedule Even 10-18'!A20 -> Hole 14 | B11: ='Flight schedule Even 10-18'!B20 -> Flight 5 | C11: ='Flight schedule Even 10-18'!B22 -> Chris Ford | D11: ='Flight schedule Even 10-18'!E22 -> Molly King | E11: ='Flight schedule Even 10-18'!G22 -> 16.4 | F11: 16
A12: ='Flight schedule Even 10-18'!A24 -> Hole 15 | B12: ='Flight schedule Even 10-18'!B24 -> Flight 6 | C12: ='Flight schedule Even 10-18'!B25 -> Brett Daniel | D12: ='Flight schedule Even 10-18'!E25 -> Beth Ann Goldberg | E12: ='Flight schedule Even 10-18'!G25 -> 17.6 | F12: 18
A13: ='Flight schedule Even 10-18'!A24 -> Hole 15 | B13: ='Flight schedule Even 10-18'!B24 -> Flight 6 | C13: ='Flight schedule Even 10-18'!B26 -> Pat Palmer | D13: ='Flight schedule Even 10-18'!E26 ->  | E13: ='Flight schedule Even 10-18'!G26 -> 17 | F13: 17
A14: ='Flight schedule Even 10-18'!A28 -> Hole 16 | B14: ='Flight schedule Even 10-18'!B28 -> Flight 7 | C14: ='Flight schedule Even 10-18'!B29 -> Andy Riggs | D14: ='Flight schedule Even 10-18'!E29 -> Kevin Rodriguez | E14: ='Flight schedule Even 10-18'!G29 -> 17 | F14: 17
A15: ='Flight schedule Even 10-18'!A28 -> Hole 16 | B15: ='Flight schedule Even 10-18'!B28 -> Flight 7 | C15: ='Flight schedule Even 10-18'!B30 ->  | D15: ='Flight schedule Even 10-18'!E30 ->  | E15: ='Flight schedule Even 10-18'!G30 -> 
A16: ='Flight schedule Even 10-18'!A32 -> Hole 17 | B16: ='Flight schedule Even 10-18'!B32 -> Flight 8 | C16: ='Flight schedule Even 10-18'!B33 ->  | D16: ='Flight schedule Even 10-18'!E33 ->  | E16: ='Flight schedule Even 10-18'!G33 -> 
A17: ='Flight schedule Even 10-18'!A32 -> Hole 17 | B17: ='Flight schedule Even 10-18'!B32 -> Flight 8 | C17: ='Flight schedule Even 10-18'!B34 ->  | D17: ='Flight schedule Even 10-18'!E34 ->  | E17: ='Flight schedule Even 10-18'!G34 -> 
A18: ='Flight schedule Even 10-18'!A36 -> Hole 18 | B18: ='Flight schedule Even 10-18'!B36 -> Flight 9 | C18: ='Flight schedule Even 10-18'!B37 ->  | D18: ='Flight schedule Even 10-18'!E37 ->  | E18: ='Flight schedule Even 10-18'!G37 -> 
A19: ='Flight schedule Even 10-18'!A36 -> Hole 18 | B19: ='Flight schedule Even 10-18'!B36 -> Flight 9 | C19: ='Flight schedule Even 10-18'!B38 ->  | D19: ='Flight schedule Even 10-18'!E38 ->  | E19: ='Flight schedule Even 10-18'!G38 -> 
A20: ='Flight schedule Even 10-18'!A40 -> Hole | B20: ='Flight schedule Even 10-18'!B40 -> Flight 10 | C20: ='Flight schedule Even 10-18'!B41 ->  | D20: ='Flight schedule Even 10-18'!E41 ->  | E20: ='Flight schedule Even 10-18'!G41 -> 
A21: ='Flight schedule Even 10-18'!A40 -> Hole | B21: ='Flight schedule Even 10-18'!B40 -> Flight 10 | C21: ='Flight schedule Even 10-18'!B42 ->  | D21: ='Flight schedule Even 10-18'!E42 ->  | E21: ='Flight schedule Even 10-18'!G42 -> 

Sheet Lookup Handicaps Red
A1: Red Men 1-9 | D1: Red Women 1-9 | G1: Rood Men 10-18 | J1: Red Women 10-18
A2: Exact HCP | B2: PL HCP | D2: Exact HCP | E2: PL HCP | G2: Exact HCP | H2: PL HCP | J2: Exact HCP | K2: PL HCP
A3: 11.5 | B3: 4 | D3: 11.5 | E3: 7 | G3: 11.5 | H3: 4 | J3: 11.5 | K3: 8
A4: 12 | B4: 5 | D4: 11.6 | E4: 8 | G4: 11.9 | H4: 5 | J4: 12.5 | K4: 9
A5: 14 | B5: 6 | D5: 13.2 | E5: 9 | G5: 13.9 | H5: 6 | J5: 14.1 | K5: 10
A6: 15.9 | B6: 7 | D6: 14.8 | E6: 10 | G6: 15.9 | H6: 7 | J6: 15.7 | K6: 11
A7: 17.8 | B7: 8 | D7: 16.5 | E7: 11 | G7: 17.9 | H7: 8 | J7: 17.3 | K7: 12
A8: 19.8 | B8: 9 | D8: 18.1 | E8: 12 | G8: 19.9 | H8: 9 | J8: 18.9 | K8: 13
A9: 21.7 | B9: 10 | D9: 19.7 | E9: 13 | G9: 21.9 | H9: 10 | J9: 20.5 | K9: 14
A10: 23.6 | B10: 11 | D10: 21.3 | E10: 14 | G10: 24 | H10: 11 | J10: 22.1 | K10: 15
A11: 25.5 | B11: 12 | D11: 23 | E11: 15 | G11: 26 | H11: 12 | J11: 23.7 | K11: 16
A12: 27.5 | B12: 13 | D12: 24.6 | E12: 16 | G12: 28 | H12: 13 | J12: 25.3 | K12: 17
A13: 29.4 | B13: 14 | D13: 26.2 | E13: 17 | G13: 30 | H13: 14 | J13: 26.9 | K13: 18
A14: 31.3 | B14: 15 | D14: 27.9 | E14: 18 | G14: 32 | H14: 15 | J14: 28.5 | K14: 19
A15: 33.3 | B15: 16 | D15: 29.5 | E15: 19 | G15: 34.1 | H15: 16 | J15: 30.1 | K15: 20
A16: 35.2 | B16: 17 | D16: 31.1 | E16: 20 | G16: 37 | H16: 17 | J16: 31.7 | K16: 21
A17: 37 | B17: 18 | D17: 32.7 | E17: 21 | G17: 38 | H17: 18 | J17: 33.3 | K17: 22
A18: 39 | B18: 19 | D18: 34.4 | E18: 22 | G18: 40 | H18: 19 | J18: 34.9 | K18: 23
A19: 41 | B19: 20 | D19: 36 | E19: 23 | G19: 42 | H19: 20 | J19: 37 | K19: 24
A20: 43 | B20: 21 | D20: 38 | E20: 24 | G20: 44 | H20: 21 | J20: 39 | K20: 25
A21: 45 | B21: 22 | D21: 40 | E21: 25 | G21: 46 | H21: 22 | J21: 41 | K21: 26
A22: 47 | B22: 23 | D22: 42 | E22: 26 | G22: 48 | H22: 23 | J22: 43 | K22: 27
A23: 49 | B23: 24 | D23: 44 | E23: 27 | G23: 50 | H23: 24 | J23: 45 | K23: 28
A24: 51 | B24: 25 | D24: 46 | E24: 28 | G24: 52 | H24: 25 | J24: 47 | K24: 29
A25: 53 | B25: 26 | D25: 48 | E25: 29 | G25: 54 | H25: 26 | J25: 49 | K25: 30
D26: 50 | E26: 30 | J26: 51 | K26: 31
D27: 52 | E27: 31 | J27: 53 | K27: 32
D28: 54 | E28: 32

Sheet sample sheet - printable list
A1: Shotgun Game [date]
A2: ID | B2: Full Name | C2: MF | D2: Handicap | E2: Shotgun [date] | F2: PLHCP 10-18 | H2: ID | I2: Full Name | J2: MF | K2: Handicap | L2: Shotgun [date] | M2: PLHCP 10-18
A3: 35 | B3: Mary Martinez | C3: F | D3: 14 | E3: yes | F3: 9 | H3: 16 | I3: Justin Evans | J3: M | K3: 13.4 | L3: yes | M3: 5
A4: 40 | B4: Diana Niemeyer | C4: F | D4: 20.3 | E4: yes | F4: 13 | H4: 49 | I4: Helen Wood | J4: M | K4: 17.9 | L4: yes | M4: 8
A5: 14 | B5: Kathy Dodge | C5: F | D5: 23.9 | E5: yes | F5: 16 | H5: 48 | I5: Nick Schultz | J5: M | K5: 18.4 | L5: yes | M5: 8
A6: 19 | B6: Deborah Fitch | C6: F | D6: 24.6 | E6: yes | F6: 16 | H6: 36 | I6: Andrew Matthews | J6: M | K6: 19 | L6: yes | M6: 8
A7: 8 | B7: Sheri Chandler | C7: F | D7: 24.7 | E7: yes | F7: 16 | H7: 5 | I7: Mike Burrows | J7: M | K7: 20.4 | L7: yes | M7: 9
A8: 3 | B8: Ellen Applegate | C8: F | D8: 27.9 | E8: yes | F8: 18 | H8: 39 | I8: Mike Murray | J8: M | K8: 21.4 | L8: yes | M8: 9
A9: 15 | B9: Angela Douglass | C9: F | D9: 28.5 | E9: yes | F9: 19 | H9: 2 | I9: David Anderson | J9: M | K9: 21.5 | L9: yes | M9: 9
A10: 18 | B10: Heather Fisher | C10: F | D10: 28.5 | E10: yes | F10: 19 | H10: 50 | I10: Dave Young | J10: M | K10: 24 | L10: yes | M10: 11
A11: 29 | B11: Julie Ipsen | C11: F | D11: 31.8 | E11: yes | F11: 21 | H11: 22 | I11: Daniel Gallagher | J11: M | K11: 26.4 | L11: yes | M11: 12
A12: 33 | B12: Molly King | C12: F | D12: 36.4 | E12: yes | F12: 23 | H12: 21 | I12: Chris Ford | J12: M | K12: 26.5 | L12: yes | M12: 12
A13: 25 | B13: Beth Ann Goldberg | C13: F | D13: 43 | E13: yes | F13: 27 | H13: 11 | I13: Brett Daniel | J13: M | K13: 26.7 | L13: yes | M13: 12
A14: 16 | B14: Justin Evans | C14: M | D14: 13.4 | E14: yes | F14: 5 | H14: 42 | I14: Pat Palmer | J14: M | K14: 36 | L14: yes | M14: 16
A15: 49 | B15: Helen Wood | C15: M | D15: 17.9 | E15: yes | F15: 8 | H15: 45 | I15: Andy Riggs | J15: M | K15: 36 | L15: yes | M15: 16
A16: 48 | B16: Nick Schultz | C16: M | D16: 18.4 | E16: yes | F16: 8 | H16: 46 | I16: Kevin Rodriguez | J16: M | K16: 36 | L16: yes | M16: 16
A17: 36 | B17: Andrew Matthews | C17: M | D17: 19 | E17: yes | F17: 8
A18: 5 | B18: Mike Burrows | C18: M | D18: 20.4 | E18: yes | F18: 9
A19: 39 | B19: Mike Murray | C19: M | D19: 21.4 | E19: yes | F19: 9
A20: 2 | B20: David Anderson | C20: M | D20: 21.5 | E20: yes | F20: 9
A21: 50 | B21: Dave Young | C21: M | D21: 24 | E21: yes | F21: 11
A22: 22 | B22: Dorothy Gallagher | C22: M | D22: 26.4 | E22: yes | F22: 12
A23: 21 | B23: Chris Ford | C23: M | D23: 26.5 | E23: yes | F23: 12
A24: 11 | B24: Brett Daniel | C24: M | D24: 26.7 | E24: yes | F24: 12
A25: 42 | B25: Pat Palmer | C25: M | D25: 36 | E25: yes | F25: 16
A26: 45 | B26: Andy Riggs | C26: M | D26: 36 | E26: yes | F26: 16
A27: 46 | B27: Kevin Rodriguez | C27: M | D27: 36 | E27: yes | F27: 16
